Workbook

Sheet Fire Stations Data (hidden)
A1: 0.0929 | B1: Space Allocation Standard | E1: One-Company Station | H1: Two Company Station | K1: AF "Main" Station
A2: Functional Component | B2: m2 | C2: ft.2 | D2: Standard | E2: No. | F2: m2 | G2: ft.2 | H2: No. | I2: m2 | J2: ft.2 | K2: No. | L2: m2 | M2: ft.2 | N2: Notes | P2: Questions:
A3: Apparatus, Equip, & Maintenance | F3: =B3*E3 -> 0 | G3: =E3*C3 -> 0 | I3: =H3*B3 -> 0 | J3: =H3*C3 -> 0 | L3: =K3*B3 -> 0 | M3: =K3*C3 -> 0
A4: Apparatus Bay - Extra Large | B4: =$A$1*C4 -> 108.693 | C4: 1170 | D4: per truck | F4: =B4*E4 -> 0 | G4: =E4*C4 -> 0 | I4: =H4*B4 -> 0 | J4: =H4*C4 -> 0 | L4: =K4*B4 -> 0 | M4: =K4*C4 -> 0 | N4: Station
A5: Apparatus Bay - Large | B5: =$A$1*C5 -> 86.9544 | C5: 936 | D5: per truck | F5: =B5*E5 -> 0 | G5: =E5*C5 -> 0 | I5: =H5*B5 -> 0 | J5: =H5*C5 -> 0 | L5: =K5*B5 -> 0 | M5: =K5*C5 -> 0 | N5: Station
A6: Apparatus Bay - ARFF | B6: =$A$1*C6 -> 122.628 | C6: 1320 | D6: per ARFF truck | F6: =B6*E6 -> 0 | G6: =E6*C6 -> 0 | I6: =H6*B6 -> 0 | J6: =H6*C6 -> 0 | L6: =K6*B6 -> 0 | M6: =K6*C6 -> 0 | N6: Station
A7: PPE Gear Storage | B7: =$A$1*C7 -> 0.929 | C7: 10 | D7: per person | F7: =B7*E7 -> 0 | G7: =E7*C7 -> 0 | I7: =H7*B7 -> 0 | J7: =H7*C7 -> 0 | L7: =K7*B7 -> 0 | M7: =K7*C7 -> 0 | N7: Station
A8: Hose Storage | B8: 5.0166 | C8: 54 | D8: per 52-Hose storage unit | F8: 0 | G8: 0 | I8: 0 | J8: 0 | L8: 0 | M8: 0 | N8: Department
A9: SCBA Maintenance Room | B9: 13.3776 | C9: 144 | D9: per four staffed vehicles | F9: 0 | G9: 0 | I9: 0 | J9: 0 | L9: 0 | M9: 0 | N9: Department
A10: SCBA Compressor Room | B10: 4.645 | C10: 50 | D10: per four staffed vehicles | F10: 0 | G10: 0 | I10: 0 | J10: 0 | L10: 0 | M10: 0 | N10: Department
A11: Protective Clothing Laundry | B11: =$A$1*C11 -> 9.29 | C11: 100 | D11: per staffed vehicle | F11: =B11*E11 -> 0 | G11: =E11*C11 -> 0 | I11: =H11*B11 -> 0 | J11: =H11*C11 -> 0 | L11: =K11*B11 -> 0 | M11: =K11*C11 -> 0 | N11: Station
A12: Equipment Wash/Disinfection | B12: =$A$1*C12 -> 13.935 | C12: 150 | D12: per room | F12: =B12*E12 -> 0 | G12: =E12*C12 -> 0 | I12: =H12*B12 -> 0 | J12: =H12*C12 -> 0 | L12: =K12*B12 -> 0 | M12: =K12*C12 -> 0 | N12: Station
A13: Work Room/Equipment Maint. | B13: 11.148 | C13: 120 | D13: per room | F13: 0 | G13: 0 | I13: 0 | J13: 0 | L13: 0 | M13: 0 | N13: Station
A14: Vehicle Maint. Equipment Storage | B14: =$A$1*C14 -> 37.16 | C14: 400 | D14: per station | F14: =B14*E14 -> 0 | G14: =E14*C14 -> 0 | I14: =H14*B14 -> 0 | J14: =H14*C14 -> 0 | L14: =K14*B14 -> 0 | M14: =K14*C14 -> 0 | N14: As dictated by Installation mission requirements
A15: EMT Storage (incl. locked Meds stor.) | B15: 3.716 | C15: =5*8 -> 40 | D15: per station | F15: =B15*E15 -> 0 | G15: =E15*C15 -> 0 | I15: =H15*B15 -> 0 | J15: =H15*C15 -> 0 | L15: =K15*B15 -> 0 | M15: =K15*C15 -> 0 | N15: Station
A16: HAZMAT/CBRNE Equip. Storage | B16: 11.148 | C16: 120 | D16: Tech. level / Tier 3 req. | F16: 0 | G16: 0 | I16: 0 | J16: 0 | L16: 0 | M16: 0 | N16: Department
A17: Spare PPE Gear Storage | B17: 5.9456 | C17: 64 | D17: per room | F17: 0 | G17: 0 | I17: 0 | J17: 0 | L17: 0 | M17: 0 | N17: Department - storage for 30% total crew gear
A18: Fire Extinguisher Inspection | B18: =$A$1*C18 -> 2.2296 | C18: 24 | D18: per inspection station | F18: =B18*E18 -> 0 | G18: =E18*C18 -> 0 | I18: =H18*B18 -> 0 | J18: =H18*C18 -> 0 | L18: =K18*B18 -> 0 | M18: =K18*C18 -> 0 | N18: Dept. - dictated by Installation mission requirements
A19: Non-FL Fire Exting. Maint. & Storage | B19: =$A$1*C19 -> 11.148 | C19: 120 | D19: per room | F19: =B19*E19 -> 0 | G19: =E19*C19 -> 0 | I19: =H19*B19 -> 0 | J19: =H19*C19 -> 0 | L19: =K19*B19 -> 0 | M19: =K19*C19 -> 0 | N19: Dept. - dictated by Installation mission requirements
A20: Flightline Fire Exting. Maintenance | B20: =$A$1*C20 -> 14.864 | C20: =160 -> 160 | D20: per station | F20: =B20*E20 -> 0 | G20: =E20*C20 -> 0 | I20: =H20*B20 -> 0 | J20: =H20*C20 -> 0 | L20: =K20*B20 -> 0 | M20: =K20*C20 -> 0 | N20: Dept. - dictated by Installation mission requirements
A21: Flightline Fire Exting. Tank Recovery Exterior Covered Storage | B21: =$A$1*C21 -> 3.716 | C21: 40 | D21: per room | F21: =B21*E21 -> 0 | G21: =E21*C21 -> 0 | I21: =H21*B21 -> 0 | J21: =H21*C21 -> 0 | L21: =K21*B21 -> 0 | M21: =K21*C21 -> 0 | N21: Dept. - dictated by Installation mission requirements
A22: Spare FL Fire Exting. Tank Exterior Covered Storage | B22: =$A$1*C22 -> 16.722 | C22: 180 | D22: 9 sf/tank x 10% of total tanks | F22: =B22*E22 -> 0 | G22: =E22*C22 -> 0 | I22: =H22*B22 -> 0 | J22: =H22*C22 -> 0 | L22: =K22*B22 -> 0 | M22: =K22*C22 -> 0 | N22: As dictated by Installation mission requirements | P22: Data from George Hall at AF
A23: Vehicle Maintenance/Storage Bay | B23: 111.48 | C23: 1200 | D23: per station | F23: 0 | G23: 0 | I23: 0 | J23: 0 | L23: 0 | M23: 0 | N23: Department - AF only
A24: Vehicle Maintenance Office | B24: 13.935 | C24: 150 | D24: per office | F24: 0 | G24: 0 | I24: 0 | J24: 0 | L24: 0 | M24: 0 | N24: Tied to Vehicle Maintenance Bay
A25: Administrative and Training | F25: =B25*E25 -> 0 | G25: =E25*C25 -> 0 | I25: =H25*B25 -> 0 | J25: =H25*C25 -> 0 | L25: =K25*B25 -> 0 | M25: =K25*C25 -> 0
A26: Station Officer's Office/ Watch Desk | B26: =$A$1*C26 -> 11.148 | C26: 120 | D26: per office | F26: 0 | G26: 0 | I26: 0 | J26: 0 | L26: 0 | M26: 0 | N26: Station
A27: Fire Chief's Office | B27: 32.0505 | C27: =140+140+65 -> 345 | D27: per office | F27: 0 | G27: 0 | I27: 0 | J27: 0 | L27: 0 | M27: 0 | N27: Department
A28: Chief's Conf. Room | B28: 11.148 | C28: 120 | D28: per room | F28: 0 | G28: 0 | I28: 0 | J28: 0 | L28: 0 | M28: 0 | N28: Department - tied to chief & deputy chief
A29: Deputy Chief's Office | B29: 11.148 | C29: 120 | D29: per office | F29: 0 | G29: 0 | I29: 0 | J29: 0 | L29: 0 | M29: 0 | N29: Dept. - dictated by Installation mission requirements
A30: Lobby Area | B30: =$A$1*C30 -> 9.29 | C30: 100 | D30: per lobby | F30: =B30*E30 -> 0 | G30: =E30*C30 -> 0 | I30: =H30*B30 -> 0 | J30: =H30*C30 -> 0 | L30: =K30*B30 -> 0 | M30: =K30*C30 -> 0 | N30: Department - tied to chief & deputy chief
A31: Admin. Asst. | B31: =$A$1*C31 -> 5.9456 | C31: 64 | D31: per office | F31: =B31*E31 -> 0 | G31: =E31*C31 -> 0 | I31: =H31*B31 -> 0 | J31: =H31*C31 -> 0 | L31: =K31*B31 -> 0 | M31: =K31*C31 -> 0 | N31: Department - tied to chief & deputy chief
A32: Asst. Chief/ Shift Supervisor | B32: 11.148 | C32: 120 | D32: per office | F32: 0 | G32: 0 | I32: 0 | J32: 0 | L32: 0 | M32: 0 | N32: Dept. - dictated by Installation mission requirements
A33: Asst. Chief of Fire Prevention | B33: 11.148 | C33: 120 | D33: per office | F33: 0 | G33: 0 | I33: 0 | J33: 0 | L33: 0 | M33: 0 | N33: Dept. - dictated by Installation mission requirements
A34: Inspector(s) Offices | B34: =$A$1*C34 -> 4.4592 | C34: =6*8 -> 48 | D34: per workstations | F34: 0 | G34: 0 | I34: 0 | J34: 0 | L34: 0 | M34: 0 | N34: Department (may be spread-out over several stations)
A35: EMS Office | B35: 7.432 | C35: 80 | D35: per office | F35: 0 | G35: 0 | I35: 0 | J35: 0 | L35: 0 | M35: 0 | N35: Station - dictated by Installation mission requirements
A36: HAZMAT/ Safety Office | B36: 11.148 | C36: 120 | D36: per office | F36: 0 | G36: 0 | I36: 0 | J36: 0 | L36: 0 | M36: 0 | N36: Dept. - dictated by Installation mission requirements
A37: Logistics Office | B37: 7.432 | C37: 80 | D37: per office | F37: 0 | G37: 0 | I37: 0 | J37: 0 | L37: 0 | M37: 0 | N37: Dept. - dictated by Installation mission requirements
A38: Dept. Training Room | B38: 2.6012 | C38: 28 | D38: per person | F38: =B38*E38 -> 0 | G38: =E38*C38 -> 0 | I38: =H38*B38 -> 0 | J38: =H38*C38 -> 0 | L38: =K38*B38 -> 0 | M38: =K38*C38 -> 0 | N38: Department - total on-duty Fire Department Staff
A39: Training Room Storage | B39: =$A$1*C39 -> 7.432 | C39: 80 | D39: per training room | F39: =B39*E39 -> 0 | G39: =E39*C39 -> 0 | I39: =H39*B39 -> 0 | J39: =H39*C39 -> 0 | L39: =K39*B39 -> 0 | M39: =K39*C39 -> 0 | N39: Tied to Department Training Room
A40: Training Officer Office | B40: 9.29 | C40: 100 | D40: per office | F40: =B40*E40 -> 0 | G40: =E40*C40 -> 0 | I40: =H40*B40 -> 0 | J40: =H40*C40 -> 0 | L40: =K40*B40 -> 0 | M40: =K40*C40 -> 0 | N40: Department
A41: Satellite Computer Training/Testing Room | B41: 13.006 | C41: 140 | D41: per four testing stations | F41: =B41*E41 -> 0 | G41: =E41*C41 -> 0 | I41: =H41*B41 -> 0 | J41: =H41*C41 -> 0 | L41: =K41*B41 -> 0 | M41: =K41*C41 -> 0 | N41: Satellite Station
A42: HQ Computer Training/Testing Room | B42: 17.651 | C42: 190 | D42: per six testing stations | G42: =E42*C42 -> 0 | J42: =H42*C42 -> 0 | M42: =K42*C42 -> 0 | N42: HQ Station
A43: General Admin Storage | B43: =$A$1*C43 -> 7.432 | C43: 80 | D43: per station | F43: =B43*E43 -> 0 | G43: =E43*C43 -> 0 | I43: =H43*B43 -> 0 | J43: =H43*C43 -> 0 | L43: =K43*B43 -> 0 | M43: =K43*C43 -> 0 | N43: Station
A44: IT Room | B44: 1.858 | C44: 20 | D44: per room | F44: 0 | G44: 0 | I44: 0 | J44: 0 | L44: 0 | M44: 0 | N44: Station
A45: Dispatch | B45: 17.8368 | C45: 192 | D45: per dispatcher | F45: 0 | G45: 0 | I45: 0 | J45: 0 | L45: 0 | M45: 0 | N45: Department - either fire or consolidated
A46: Dispatch Supervisor | B46: 5.9456 | C46: 64 | D46: per workstation | F46: 0 | G46: 0 | I46: 0 | J46: 0 | L46: 0 | M46: 0 | N46: Department - tied to dispatch
A47: Dispatch Bathroom | B47: 4.4592 | C47: 48 | D47: per fixture (ADA) | F47: 0 | G47: 0 | I47: 0 | J47: 0 | L47: 0 | M47: 0 | N47: Department - tied to dispatch
A48: Dispatch Kitchenette | B48: =$A$1*C48 -> 1.858 | C48: =4*5 -> 20 | D48: per kitchenette | F48: =B48*E48 -> 0 | G48: =E48*C48 -> 0 | I48: =H48*B48 -> 0 | J48: =H48*C48 -> 0 | L48: =K48*B48 -> 0 | M48: =K48*C48 -> 0 | N48: Department - tied to dispatch | P48: (Sink, micro, coffee, toaster, under-counter refridge)
A49: Additional IT Room Space | B49: 5.574 | C49: 60 | D49: per room | F49: 0 | G49: 0 | I49: 0 | J49: 0 | L49: 0 | M49: 0 | N49: Tied to dispatch
A50: Emergency Generator Space | B50: 23.225 | C50: 250 | D50: per station | F50: 0 | G50: 0 | I50: 0 | J50: 0 | L50: 0 | M50: 0 | N50: station
A51: Residential and Living | F51: 0 | G51: 0 | I51: 0 | J51: 0 | L51: 0 | M51: 0 | P51: Hidden row above
A52: Day/Training Room | B52: =$A$1*C52 -> 60.1992 | C52: =180+(18*26) -> 648 | D52: per staffed vehicle | F52: =B52*E52 -> 0 | G52: =E52*C52 -> 0 | I52: =H52*B52 -> 0 | J52: =H52*C52 -> 0 | L52: =K52*B52 -> 0 | M52: =K52*C52 -> 0 | N52: Station = kitchen + dining/training + lounge
A53: Dorm Room with one bed | B53: =ROUND($A$1*C53,2) -> 10.03 | C53: =9*12 -> 108 | D53: per room | F53: =E53*B53 -> 0 | G53: 0 | I53: 0 | J53: 0 | L53: 0 | M53: 0 | N53: Station = staffed vehicle count + 1/company
A54: Dorm Room with two beds | B54: =ROUND($A$1*C54,2) -> 13.01 | C54: =10*14 -> 140 | D54: per room | G54: 0 | J54: 0 | M54: 0 | N54: Station = staffed vehicle count + 1/company
A55: Dorm Room with two fold-up beds | B55: =ROUND($A$1*C55,2) -> 9.29 | C55: =10*10 -> 100 | D55: per room | N55: Station = staffed vehicle count + 1/company
A56: Bathrooms/Showers/Changing | B56: =$A$1*C56 -> 23.225 | C56: 250 | D56: per staffed vehicle | E56: =1+2 -> 3 | F56: =B56*E56 -> 69.675 | G56: 750 | H56: =1+4 -> 5 | I56: 116.125 | J56: 1250 | L56: 0 | M56: 0 | N56: Station | P56: F(1 wc, 1 shower, 1 lav) + M(2 wc, 2 showers, 2 lav.) - F(1 wc, 1 shower, 1 lav) + M(4 wc, 4 showers, 3 lav.)
A57: Fitness Room | B57: 40.5973 | C57: 437 | D57: per station | F57: =E57*B57 -> 0 | G57: 0 | I57: 0 | J57: 0 | L57: 0 | M57: 0 | N57: Station - to accommodate 4 working out at one time | P57: (3 aerobic + univer + weights + water cooler)
A58: Laundry Room | B58: 7.432 | C58: 80 | D58: per staffed vehicle | F58: =B58*E58 -> 0 | G58: 0 | I58: 0 | J58: 0 | L58: 0 | M58: 0 | N58: Station - 1 washer, 2 dryers, sink, folding table
A59: Physical Therapy/Sauna | B59: 18.58 | C59: 200 | D59: per station | F59: =B59*E59 -> 0 | G59: 0 | I59: 0 | J59: 0 | L59: 0 | M59: 0 | N59: Station - dictated by Installation mission requirements
A60: Recreation Room | B60: 33.444 | C60: 360 | D60: per station | F60: =B60*E60 -> 0 | G60: 0 | I60: 0 | J60: 0 | L60: 0 | M60: 0 | N60: Optional - station = one or two "game units"
A61: Vending | B61: 1.858 | C61: 20 | D61: per vending machine | F61: =B61*E61 -> 0 | G61: 0 | I61: 0 | J61: 0 | L61: 0 | M61: 0 | N61: Station
A62: Other Spaces | F62: =B62*E62 -> 0 | G62: 0 | I62: 0 | J62: 0 | L62: 0 | M62: 0
A63: SCPS (Surv. Collective Protective System) | N63: Only applies to Overseas Combination Stations (Geo. Hall)
A64: Reserve Offices | B64: =$A$1*C64 -> 11.148 | C64: 120 | D64: per office | F64: =E64*$B$64 -> 0 | G64: =E64*C64 -> 0 | I64: =H64*B64 -> 0 | J64: =H64*C64 -> 0 | L64: =K64*$B$64 -> 0 | M64: =K64*C64 -> 0 | N64: AF only - dictated by Installation mission requirements | P64: Hidden row above
A65: Reserve and Active Duty Mobility/ Deployment Gear Storage | B65: =$A$1*C65 -> 18.58 | C65: 200 | D65: per station | F65: =B65*E65 -> 0 | G65: =E65*C65 -> 0 | I65: =H65*B65 -> 0 | J65: =H65*C65 -> 0 | L65: =K65*B65 -> 0 | M65: =K65*C65 -> 0 | N65: AF only - dictated by Installation mission requirements
A66: Reserve Firefighter PPE Gear | B66: =$A$1*C66 -> 0.929 | C66: 10 | D66: per person | F66: =B66*E66 -> 0 | G66: =E66*C66 -> 0 | I66: =H66*B66 -> 0 | J66: =H66*C66 -> 0 | L66: =K66*B66 -> 0 | M66: =K66*C66 -> 0 | N66: AF only - dictated by Installation mission requirements
A67: EOC Situation Room* | B67: =$A$1*C67 -> 29.728 | C67: 320 | D67: per room | F67: =B67*E67 -> 0 | G67: =E67*C67 -> 0 | I67: =H67*B67 -> 0 | J67: =H67*C67 -> 0 | L67: =K67*B67 -> 0 | M67: =K67*C67 -> 0 | N67: Dept. - dictated by Installation mission requirements
A68: Public toilet (ADA-compliant, unisex) | B68: =$A$1*C68 -> 4.1805 | C68: 45 | D68: per room | F68: =B68*E68 -> 0 | G68: =E68*C68 -> 0 | I68: =H68*B68 -> 0 | J68: =H68*C68 -> 0 | L68: =K68*B68 -> 0 | M68: =K68*C68 -> 0 | N68: Station
A69: Total Building Net Area-Core Spaces & Support | F69: =SUM(F3:F68) -> 69.675 | G69: =SUM(G3:G68) -> 750 | I69: =SUM(I3:I68) -> 116.125 | J69: =SUM(J3:J68) -> 1250 | L69: =SUM(L3:L68) -> 0 | M69: =SUM(M3:M68) -> 0
A70: Circulation and Mechanical Building Factor @ | E70: 0.18 | F70: =F69*E70 -> 12.5415 | G70: =G69*E70 -> 135 | H70: 0.19 | I70: =I69*H70 -> 22.06375 | J70: =J69*H70 -> 237.5 | K70: 0.2 | L70: =L69*K70 -> 0 | M70: =M69*K70 -> 0
A71: Total Building Gross Area-Core Spaces & Support | F71: =SUM(F69:F70) -> 82.2165 | G71: =SUM(G69:G70) -> 885 | I71: =SUM(I69:I70) -> 138.18875 | J71: =SUM(J69:J70) -> 1487.5 | L71: =SUM(L69:L70) -> 0 | M71: =SUM(M69:M70) -> 0
A72: Staff Parking | B72: =$A$1*C72 -> 41.805 | C72: 450 | D72: per space (incl. circ.) | F72: =E72*B72 -> 0 | G72: =E72*C72 -> 0 | I72: =H72*B72 -> 0 | J72: =H72*C72 -> 0 | L72: =K72*B72 -> 0 | M72: =K72*C72 -> 0 | N72: Station | P72: Hidden rows above
A73: Visitor Parking | B73: 41.805 | C73: 450 | D73: per space (incl. circ.) | F73: 0 | G73: 0 | I73: 0 | J73: 0 | L73: 0 | M73: 0 | N73: Station
A74: Bicycle Rack Area | B74: 14.864 | C74: 160 | D74: per 10-bike Rack | F74: 0 | G74: 0 | I74: 0 | J74: 0 | L74: 0 | M74: 0 | N74: Station
A75: Site Approach to Apparatus Bays | B75: 185.8 | C75: 2000 | D75: per bay | F75: 0 | G75: 0 | I75: 0 | J75: 0 | L75: 0 | M75: 0 | N75: Station
A76: Agent Storage (ARFF) | B76: 6.9675 | C76: 75 | D76: per ARFF truck | F76: 0 | G76: 0 | I76: 0 | J76: 0 | L76: 0 | M76: 0 | N76: Station or Department - Foam + 2nd agent
A77: Agent Storage (Structural) | B77: 4.4592 | C77: 48 | D77: per Station (Struct. trucks) | F77: 0 | G77: 0 | I77: 0 | J77: 0 | L77: 0 | M77: 0 | N77: Station - Class A Foam
A78: Patio | B78: 13.935 | C78: 150 | D78: Min. (1 to 2 companies) | F78: 0 | G78: 0 | I78: 0 | J78: 0 | L78: 0 | M78: 0 | N78: Station - add 100 sf for 3-4 cos, add 100 sf for > 4 cos.
A79: Total Site Support | F79: =SUM(F72:F78) -> 0 | G79: =SUM(G72:G78) -> 0 | I79: =SUM(I72:I78) -> 0 | J79: =SUM(J72:J78) -> 0 | L79: =SUM(L72:L78) -> 0 | M79: =SUM(M72:M78) -> 0
A80: Total Facility (Building Gross Core Spaces and Site) | F80: =F79+F71 -> 82.2165 | G80: =G79+G71 -> 885 | I80: =I79+I71 -> 138.18875 | J80: =J79+J71 -> 1487.5 | L80: =L79+L71 -> 0 | M80: =M79+M71 -> 0
A81: * Only if used in combination with Fire/EMS/Police.

Sheet Interactive Worksheet
B1: ENTER PROJECT NAME AND INFORMATION: | O1: Rev.2, Nov 2013
A3: =IF(D1=0,"Project Name and Information Here",D1) -> Project Name and Information Here | J3: Lists for Select Boxes | L3: Service Exceptions | O3: Notes
A5: Select Service Branch: | J5: Army | L5: Army & Navy | M5: AF & MC
J6: Navy
J7: Air Force
A8: ="Select Type of Facility" -> Select Type of Facility | J8: Marine Corps
B9: =IF($C$5=0,,(IF(C5="Army","* Select Type as Structural, ARFF, or Combination.",(IF(C5="Navy","* Select Type as Structural, ARFF, or Combination.",(IF(C5="Air Force","* Select Type as Structural, ARFF, or Combination.",(IF(C5="Marine Corps","* Select Type as Structural, ARFF, or Combination. Note: The Marine Corps rarely builds Combination Stations, and that selection must be justified.",))))))))) -> 0
J10: Structural
A11: ="Select Class of Facility" -> Select Class of Facility | J11: ARFF
B12: =IF($C$8=0,,(IF(C5="Army","* Select Class as HQ/Main or Satellite. The Army does not build Large HQ Facilities.",(IF(C5="Navy","* Select Class as HQ/Main, Satellite, or Large HQ.",(IF(C5="Air Force","* Select Class as HQ/Main, Satellite, or Large HQ.",(IF(C5="Marine Corps","* Select Class as HQ/Main or Satellite. The Marine Corps does not build Large HQ Facilities.",))))))))) -> 0 | D12: =IF(C8="Combination",,IF(C11="Large HQ","ERROR. HQ/Main or Large HQ stations must be Combination stations.",)) -> 0 | J12: Combination
A14: ="Staffed Companies and Dorm Rooms" -> Staffed Companies and Dorm Rooms | J14: HQ/Main
J15: Satellite
B16: =IF(C11=0,,(IF(C8="ARFF",,"Enter No. of Structural Companies:"))) -> 0 | J16: Large HQ | L16: =IF($C$11=0,,(IF(C5="Army","* The Army typically builds 1- or 2-company stations, and Dorm Room count relates to Company count as follows: 5 rooms per structural co. and 4 rooms per ARFF co. You can modify the count below.",(IF(C5="Navy","* Navy stations range from 1 company up to 8 cos. Dorm Room count relates to co. count as follows: 5 rooms per structural co. and 4 rooms per ARFF co. You can modify the count below.",))))) -> 0 | M16: =IF($C$11=0,,(IF(C5="Air Force","* Air Force stations range from 1 company up to 8 cos. Dorm Room counts relate to co. count as follows: 5 rooms per structural co. and 4 rooms per ARFF co. You can modify the count below.",(IF(C5="Marine Corps","* Marine Corps stations range from 1 company up to 8 cos. Dorm Room counts relate to co. count as follows: 4 rooms per structural co. and 4 rooms per ARFF co. You can modify the count below.",))))) -> 0
B17: =IF(C11=0,,(IF(C8="Structural",,"Enter No. of ARFF Companies:"))) -> 0
B18: =IF($C$11=0,,(IF(C5="Army",L16,(IF(C5="Navy",L16,(IF(C5="Air Force",M16,(IF(C5="Marine Corps",M16,))))))))) -> 0 | J18: Yes
J19: No
B20: =IF($C$11=0,,"Based on no. of companies entered, the following dorm rooms will be provided:") -> 0 | F20: =IF($C$8="Structural",IF($C$17>0,"ERROR",($L$20+$M$20)),IF($C$8="ARFF",IF($C$16>0,"ERROR",($L$20+$M$20)),($L$20+$M$20))) -> 0 | L20: =IF($C$11=0,,(IF(C5="Army",(C16*5)+(C17*4),(IF(C5="Navy",(C16*5)+(C17*4),))))) -> 0 | M20: =IF($C$11=0,,(IF(C5="Air Force",(C16*5)+(C17*4),(IF(C5="Marine Corps",(C16*4)+(C17*4),))))) -> 0
F21: =IF(F20="Error","Only enter data in shaded cells.",) -> 0 | J21: One Bed
B22: =IF($C$11=0,,"Modify Dorm Room count (+ or -) as needed:") -> 0 | J22: Two Beds
B23: =IF($C$11=0,,"* Add or subtract to the Dorm Room count as needed. Note, each Ambulance co. will typically require +2 rooms and each Rescue co. will typically require +3 rooms. Also consider X-staffing when modifying the count. Carefully review final room count with PM.") -> 0 | J23: Two Fold-ups
F25: =IF(C11=0,,"Total Dorm Room Count:") -> 0 | G25: =IF(F20=0,0,F20+C22) -> 0 | J25: Calculations
A27: ="Enter No. of Each Class of Vehicle to be Housed" -> Enter No. of Each Class of Vehicle to be Housed | D27: =IF(G25=0,," Bay Sizes ** ") -> 0 | J27: 0.0929
B28: =IF(G25=0,,"Large") -> 0 | D28: =IF($G$25=0,,IF(B28=0,,(IF(($C$30+$C$31)>0,"6706 mm (22 ft.) by 18288 mm (60 ft.)","5944 mm (19.5 ft.) by 18288 mm (60 ft.)")))) -> 0 | J28: =IF($G$25=0,,(IF(($C$30+$C$31)>0,(22*60),(19.5*60)))) -> 0 | O28: If Ex. Lg or ARFF trucks are selected, all bays will be 60 ft. long.
B29: =IF(G25=0,,"Medium") -> 0 | D29: =IF($G$25=0,,IF(B29=0,,(IF($C$30>0,"6706 mm (22 ft.) by 18288 mm (60 ft.)",(IF($C$31>0,(IF($C$28>0,"6706 mm (22 ft.) by 18288 mm (60 ft.)","6707 mm (22 ft.) by 14630 mm (48 ft.)")),(IF($C$28>0,"5944 mm (19.5 ft.) by 18288 mm (60 ft.)","5944 mm (19.5 ft.) by 14630 mm (48 ft.)")))))))) -> 0 | J29: =IF($G$25=0,,(IF($C$30>0,(22*60),(IF($C$31>0,(IF($C$28>0,(22*60),(22*48))),(IF($C$28>0,(19.5*60),(19.5*48)))))))) -> 0
B30: =IF(G25=0,,"Large ARFF") -> 0 | D30: =IF($G$25=0,,IF(B30=0,,"6706 mm (22 ft.) by 18288 mm (60 ft.)")) -> 0 | J30: =IF($G$25=0,,(22*60)) -> 0 | O30: If ARFF trucks are selected, all the bays will be for a 12-ft. truck
B31: =IF(G25=0,,"Medium ARFF") -> 0 | D31: =IF($G$25=0,,IF(B31=0,,(IF(($C$30+$C$28)>0,"6706 mm (22 ft.) by 18288 mm (60 ft.)","6707 mm (22 ft.) by 14630 mm (48 ft.)")))) -> 0 | J31: =IF($G$25=0,,(IF(($C$30+$C$28)>0,(22*60),(22*48)))) -> 0
B32: =IF(G25=0,,"Small") -> 0 | D32: =IF(G25=0,,"Small vehicles do not have a dedicated bay size.") -> 0
B33: =IF($G25=0,,"** Bay size includes area required around vehicle. Bay sizes are driven by largest vehicle selected, i.e., if at least 1 Large ARFF truck is entered, all bays will accommodate that size truck. See Para. 2-2.2-1 for more information.") -> 0
F34: =IF(G25=0,,"Total Vehicles:") -> 0 | G34: =IF(G25=0,0,SUM($C$28:$C$32)) -> 0
A36: ="Maintenance and Apparatus Room Spaces" -> Maintenance and Apparatus Room Spaces
F37: m2 | G37: ft.2 | L37: Army & Navy | M37: AF & MC
B38: =IF(G34=0,,"Based on vehicle classes & quantities entered above, the basic Apparatus Room is sized:") -> 0 | F38: =G38*$J$27 -> 0 | G38: =(C28*J28)+(C29*J29)+(C30*J30)+(C31*J31) -> 0
B40: =IF(G34=0,,"Based on the quantity of Small vehicles entered above, consider additional area as follows:") -> 0 | F40: =G40*$J$27 -> 0 | G40: =IF(M41=TRUE,,J40*J41) -> 0 | J40: =ROUNDDOWN(C32/2,0) -> 0
B41: =IF($G34=0,,"* This suggested area must be carefully reviewed by the planning team. Review the actual size of Small vehicles and space available in other bays.") -> 0 | G41: =IF($G$34=0,,IF(J40=0,,"Check here to delete additional Bay area. >")) -> 0 | J41: =IF(G34=0,,(SUMIF(C28:C31,">0",J28:J31))/(COUNT(C28:C31))) -> 0 | M41: FALSE
B43: =IF($G$34=0,,"Based on no. of Dorm Rooms entered above, the PPE Gear Storage Area is sized:") -> 0 | F43: =G43*$J$27 -> 0 | G43: =IF(G34=0,,(G25*'Fire Stations Data'!C7)) -> 0
B45: =IF($G$34=0,,IF(C11="Satellite","Hose Storage is typically only provided in Main Stations. If required, check box below.","Based on selections entered above, the Hose Storage Area is sized:")) -> 0 | F45: =G45*$J$27 -> 0 | G45: =IF(C11="Satellite",IF(L46=TRUE,J45,0),J45) -> 0 | J45: =IF(G34=0,,'Fire Stations Data'!C8) -> 0
B46: =IF($G$34=0,,IF($C$11="Satellite","< Check here to add "&'Fire Stations Data'!A8&" in this Satellite station.",)) -> 0 | L46: FALSE
B48: =IF($G$34=0,,IF(C11="Satellite","SCBA Maint. Room is typically only provided in Main Stations. If required, check box below.","Based on selections entered above, the SCBA Maint. Room is sized:")) -> 0 | F48: =G48*$J$27 -> 0 | G48: =IF($C$11="Satellite",IF(L49=TRUE,J48,0),J48) -> 0 | J48: =IF($G$34=0,,IF(($C$16+$C$17)<5,(1*'Fire Stations Data'!C9),IF(($C$16+$C$17)<9,(2*'Fire Stations Data'!C9),IF(($C$16+$C$17)<13,(3*'Fire Stations Data'!C9),IF(($C$16+$C$17)<17,(4*'Fire Stations Data'!C9),IF(($C$16+$C$17)<21,(5*'Fire Stations Data'!C9),IF(($C$16+$C$17)<25,(6*'Fire Stations Data'!C9),))))))) -> 0
B49: =IF($G$34=0,,IF($C$11="Satellite","< Check here to add "&'Fire Stations Data'!A9&" in this Satellite station.",)) -> 0 | L49: FALSE
B51: =IF($G$34=0,,IF($C$11="Satellite","SCBA Compressor Rm is typically only provided in Main Sta. If required, check box below.","Based on selections entered above, the SCBA Compressor Rm is sized:")) -> 0 | F51: =G51*$J$27 -> 0 | G51: =IF($C$11="Satellite",IF(L52=TRUE,J51,0),J51) -> 0 | J51: =IF(G34=0,,IF(($C$16+$C$17)<5,(1*'Fire Stations Data'!C10),IF(($C$16+$C$17)<9,(2*'Fire Stations Data'!C10),IF(($C$16+$C$17)<13,(3*'Fire Stations Data'!C10),IF(($C$16+$C$17)<17,(4*'Fire Stations Data'!C10),IF(($C$16+$C$17)<21,(5*'Fire Stations Data'!C10),IF(($C$16+$C$17)<25,(6*'Fire Stations Data'!C10),))))))) -> 0
B52: =IF($G$34=0,,IF($C$11="Satellite","< Check here to add "&'Fire Stations Data'!A10&" in this Satellite station.",)) -> 0 | L52: FALSE
B54: =IF($G$34=0,,"Based on selections entered above, the Work Rm/Equip Maint. is sized:") -> 0 | F54: =G54*$J$27 -> 0 | G54: =IF($G$34=0,,'Fire Stations Data'!C13) -> 0
B56: =IF($G$34=0,,"Based on selections entered above, the Equip Wash/Disinfect. is sized:") -> 0 | F56: =G56*$J$27 -> 0 | G56: =IF($G$34=0,,'Fire Stations Data'!C12) -> 0
B58: =IF($G$34=0,,"Based on selections entered above, the Protect. Clothing Laund. is sized:") -> 0 | F58: =G58*$J$27 -> 0 | G58: =J58 -> 0 | J58: =IF($G$34=0,,IF(($C$16+$C$17)<3,(1*'Fire Stations Data'!C11),IF(($C$16+$C$17)<5,(2*'Fire Stations Data'!C11),IF(($C$16+$C$17)>4,(3*'Fire Stations Data'!C11),)))) -> 0 | O58: 1 to 2 companies = 100 sf; 3 to 4 companies = 200 sf; 5+ companies = 300 sf.
B60: =IF($G$34=0,,"Based on selections entered above, the EMT Storage Room is sized:") -> 0 | F60: =G60*$J$27 -> 0 | G60: =IF($G$34=0,,'Fire Stations Data'!C15) -> 0
B62: =IF($G$34=0,,IF($C$11="Satellite","HAZMAT Equip. Storage is typically only provided in Main Sta. If required, check box below.","Based on selections entered above, the HAZMAT Equip. Storage is sized:")) -> 0 | F62: =G62*$J$27 -> 0 | G62: =IF($C$11="Satellite",IF(L63=TRUE,J62,0),J62) -> 0 | J62: =IF(G34=0,,'Fire Stations Data'!C16) -> 0
B63: =IF($G$34=0,,IF($C$11="Satellite","< Check here to add "&'Fire Stations Data'!A16&" in this Satellite station.",)) -> 0 | L63: FALSE
B65: =IF($G$34=0,,IF($C$11="Satellite","Spare PPE Storage is typically only provided in Main Sta. If required, check box below.","Based on selections entered above, the Spare PPE Storage is sized:")) -> 0 | F65: =G65*$J$27 -> 0 | G65: =IF($C$11="Satellite",IF(L66=TRUE,J65,0),J65) -> 0 | J65: =IF(G34=0,,'Fire Stations Data'!C17) -> 0
B66: =IF($G$34=0,,IF($C$11="Satellite","< Check here to add "&'Fire Stations Data'!A17&" in this Satellite station.",)) -> 0 | L66: FALSE
B68: =IF($G$34=0,,"Select Vehicle Maint./Storage Bay (yes or no):") -> 0 | F68: =G68*$J$27 -> 0 | G68: =IF($G$34=0,,IF(C68="Yes",'Fire Stations Data'!C23,)) -> 0
B70: =IF($G$34=0,,"Vehicle Maint./Storage Bay includes Vehicle Maint. Office at:") -> 0 | F70: =G70*$J$27 -> 0 | G70: =IF(G68=0,,'Fire Stations Data'!C24) -> 0
B71: =IF($G$34=0,,"Vehicle Maint./Storage Bay includes Vehicle Maint. Equipment Storage at:") -> 0 | F71: =G71*$J$27 -> 0 | G71: =IF(G68=0,,'Fire Stations Data'!C14) -> 0
B73: =IF($G$34=0,,"Enter Fire Exting. Inspection (no. of stations):") -> 0 | F73: =G73*$J$27 -> 0 | G73: =IF($G$34=0,,IF(C73=0,,('Fire Stations Data'!C18*C73))) -> 0 | O73: Limited to 10 Inspection Stations.
B75: =IF($G$34=0,,"Select Non-Flightline Fire Exting. Maint. (yes or no):") -> 0 | F75: =G75*$J$27 -> 0 | G75: =IF($G$34=0,,IF(C75="Yes",'Fire Stations Data'!C19,)) -> 0
B77: =IF($G$34=0,,"Select Flightline (FL) Fire Exting. Maint. (yes or no):") -> 0 | F77: =G77*$J$27 -> 0 | G77: =IF($G$34=0,,IF(C77="Yes",'Fire Stations Data'!C20,)) -> 0
B79: =IF($G$34=0,,"Select FL Fire Exting. Covered Storage (yes or no):") -> 0 | F79: =G79*$J$27 -> 0 | G79: =IF($G$34=0,,IF(C79="Yes",'Fire Stations Data'!C21,)) -> 0
B81: =IF($G$34=0,,IF($C$5="Air Force","Select "&'Fire Stations Data'!A22&" (yes or no):","Air Force-only.")) -> 0 | F81: =G81*$J$27 -> 0 | G81: =IF($G$34=0,,IF(C5="Air Force",IF(C81="Yes",'Fire Stations Data'!C22,),)) -> 0
B83: =IF($G34=0,,IF(C5="Air Force","* This Air Force-only item provides space for Spare Flightline Fire Extinguisher Tanks Exterior Covered Storage.",)) -> 0
A86: ="Day Room and Residential Area" -> Day Room and Residential Area
F87: m2 | G87: ft.2
B88: =IF($G$34=0,,"Based on no. of Companies entered above, the Day Room is sized:") -> 0 | F88: =G88*$J$27 -> 0 | G88: =IF($G$34=0,,((C16+C17)*'Fire Stations Data'!C52)) -> 0
B90: =IF($G$34=0,,"Select Dorm Room bed configuration") -> 0
B92: =IF($G$34=0,,"Based on Total Dorm Room Count & bed configuration selected, the Dorm Room Area is sized:") -> 0 | F92: =G92*$J$27 -> 0 | G92: =IF($G$34=0,,IF(C90=J21,(G25*'Fire Stations Data'!C53),IF(C90=J22,(G25*'Fire Stations Data'!C54),IF(C90=J23,(G25*'Fire Stations Data'!C55),)))) -> 0
B93: =IF($G$34=0,,IF(C90=0,"Must select bed configuration above.",IF(C90=J21,"This provides space for the '"&C90&"' configuration (at "&'Fire Stations Data'!B53&" sm ("&'Fire Stations Data'!C53&" sf) per room) for the following:",IF(C90=J22,"This provides space for the '"&C90&"' configuration (at "&'Fire Stations Data'!B54&" sm ("&'Fire Stations Data'!C54&" sf) per room) for the following:",IF(C90=J23,"This provides space for the '"&C90&"' configuration (at "&'Fire Stations Data'!B55&" sm ("&'Fire Stations Data'!C55&" sf) per room) for the following:","Must select bed configuration above."))))) -> 0
B94: =IF($G$34=0,,IF(C16=0," 0 Structural Companies,"," "&C16&" Structural Companies,")) -> 0
B95: =IF($G$34=0,,IF(C17=0," 0 ARFF Companies, and"," "&C17&" ARFF Companies, and")) -> 0
B96: =IF($G$34=0,,IF(C22=0," 0 additional Dorm Rooms (for ambulance or rescue companies or other modifications)."," "&C22&" additional Dorm Rooms (for ambulance or rescue companies or other modifications).")) -> 0
F97: 0 | G97: 0 | M97: 0
B98: =IF($G$34=0,,"Based on no. of Companies entered above, the Bathrooms are sized:") -> 0 | F98: =G98*$J$27 -> 0 | G98: =IF($G$34=0,,J98) -> 0 | J98: =IF($G$34=0,,IF(($C$16+$C$17)=1,('Fire Stations Data'!C56),IF(($C$16+$C$17)=2,('Fire Stations Data'!C56+80),IF(($C$16+$C$17)>2,(('Fire Stations Data'!C56+80)+(($C$16+$C$17-2)*50)),)))) -> 0 | O98: 1 company = 250 sf; 2 companies = 330 sf; each additional co. over 2 adds 50 sf
B100: =IF($G$34=0,,"Based on no. of Companies entered above, the Laundry Room is sized:") -> 0 | F100: =G100*$J$27 -> 0 | G100: =J100 -> 0 | J100: =IF($G$34=0,,IF(($C$16+$C$17)<3,(1*'Fire Stations Data'!C58),IF(($C$16+$C$17)<5,(2*'Fire Stations Data'!C58),IF(($C$16+$C$17)>4,(3*'Fire Stations Data'!C58),)))) -> 0 | O100: 1 to 2 companies = 80 sf; 3 to 4 cos = 160 sf; 5+ companies = 240 sf.
B102: =IF($G$34=0,,"Based on no. of Companies entered above, the Fitness Room is sized:") -> 0 | F102: =G102*$J$27 -> 0 | G102: =IF($G$34=0,,'Fire Stations Data'!C57) -> 0
B104: =IF($G$34=0,,"Based on no. of Companies entered above, the Vending Area is sized:") -> 0 | F104: =G104*$J$27 -> 0 | G104: =IF($G$34=0,,J104) -> 0 | J104: =IF($G$34=0,,IF(($C$16+$C$17)<3,(2*'Fire Stations Data'!C61),IF(($C$16+$C$17)<5,(3*'Fire Stations Data'!C61),IF(($C$16+$C$17)>4,(4*'Fire Stations Data'!C61),)))) -> 0 | O104: 1 to 2 FF companies = 2 vending machines; 3 to 4 cos = 3 machines; and 5+ cos. = 4 machines
B106: =IF($G$34=0,,"Select Physical Therepy/Sauna (yes or no)") -> 0 | F106: =G106*$J$27 -> 0 | G106: =IF($G$34=0,,IF(C106="Yes",'Fire Stations Data'!C59,)) -> 0
B108: =IF($G$34=0,,"Select Recreation Room (yes or no)") -> 0 | F108: =G108*$J$27 -> 0 | G108: =IF($G$34=0,,IF(C108="Yes",'Fire Stations Data'!C60,)) -> 0
A111: ="Training and Administrative Area" -> Training and Administrative Area
F112: m2 | G112: ft.2
B113: =IF($G$34=0,,""&'Fire Stations Data'!A26&"") -> 0 | F113: =G113*$J$27 -> 0 | G113: =IF($G$34=0,,'Fire Stations Data'!C26) -> 0
B115: =IF($G$34=0,,IF($C$11="Satellite",""&'Fire Stations Data'!A27&" is typically only provided in HQ Stations. If required, check box below.","Based on selections entered above, the "&'Fire Stations Data'!A27&" is provided:")) -> 0 | F115: =G115*$J$27 -> 0 | G115: =IF($C$11="Satellite",IF(L116=TRUE,J115,0),IF(M116=TRUE,,J115)) -> 0 | J115: =IF($G$34=0,,'Fire Stations Data'!C27) -> 0
B116: =IF($G$34=0,,IF($C$11="Satellite","< Check here to add "&'Fire Stations Data'!A27&" in this Satellite station.",)) -> 0 | G116: =IF($G$34=0,,IF($C$11="Satellite",,"Check here to delete "&'Fire Stations Data'!A27&" in this HQ station. >")) -> 0 | L116: FALSE | M116: FALSE
B118: =IF($G$34=0,,"Select "&'Fire Stations Data'!A29&" (yes or no):") -> 0 | F118: =G118*$J$27 -> 0 | G118: =IF($G$34=0,,IF(C118="Yes",'Fire Stations Data'!C29,)) -> 0
B120: =IF($G$34=0,,IF($G$115>0,"Based on selections entered above, the "&'Fire Stations Data'!A30&" is provided:",""&'Fire Stations Data'!A30&" is typically only provided with the "&'Fire Stations Data'!A27&". If required, check box below.")) -> 0 | F120: =G120*$J$27 -> 0 | G120: =IF($G$115>0,IF(M121=TRUE,0,J120),IF(L121=TRUE,J120,)) -> 0 | J120: =IF($G$34=0,,'Fire Stations Data'!C30) -> 0
B121: =IF($G$34=0,,IF($G$115>0,,"< Check here to add "&'Fire Stations Data'!A30&" in this station.")) -> 0 | G121: =IF($G$34=0,,IF($G$115>0,"Check here to delete "&'Fire Stations Data'!A30&" in this HQ station. >",)) -> 0 | L121: FALSE | M121: FALSE
B123: =IF($G$34=0,,""&'Fire Stations Data'!A68&"") -> 0 | F123: =G123*$J$27 -> 0 | G123: =IF($G$34=0,,'Fire Stations Data'!C68) -> 0
B125: =IF($G$34=0,,IF($G$115>0,"Based on selections entered above, the "&'Fire Stations Data'!A31&" is provided:",""&'Fire Stations Data'!A31&" is typically only provided with the "&'Fire Stations Data'!A27&". If required, check box below.")) -> 0 | F125: =G125*$J$27 -> 0 | G125: =IF($G$115>0,IF(M126=TRUE,0,J125),IF(L126=TRUE,J125,)) -> 0 | J125: =IF($G$34=0,,'Fire Stations Data'!C31) -> 0
B126: =IF($G$34=0,,IF($G$115>0,,"< Check here to add "&'Fire Stations Data'!A31&" in this station.")) -> 0 | G126: =IF($G$34=0,,IF($G$115>0,"Check here to delete "&'Fire Stations Data'!A31&" in this HQ station. >",)) -> 0 | L126: FALSE | M126: FALSE
B128: =IF($G$34=0,,IF($G$115>0,"Based on selections entered above, the "&'Fire Stations Data'!A28&" is provided:",""&'Fire Stations Data'!A28&" is typically only provided with "&'Fire Stations Data'!A27&". If required, check box below.")) -> 0 | F128: =G128*$J$27 -> 0 | G128: =IF($G$115>0,IF(M129=TRUE,0,J128),IF(L129=TRUE,J128,)) -> 0 | J128: =IF($G$34=0,,'Fire Stations Data'!C28) -> 0
B129: =IF($G$34=0,,IF($G$115>0,,"< Check here to add "&'Fire Stations Data'!A28&" in this station.")) -> 0 | G129: =IF($G$34=0,,IF($G$115>0,"Check here to delete "&'Fire Stations Data'!A28&" in this HQ station. >",)) -> 0 | L129: FALSE | M129: FALSE
B131: =IF($G$34=0,,"Select "&'Fire Stations Data'!A32&" (yes or no):") -> 0 | F131: =G131*$J$27 -> 0 | G131: =IF($G$34=0,,IF(C131="Yes",'Fire Stations Data'!C32,)) -> 0
B132: =IF($G$34=0,,IF(C11="Satellite","* Note: This is usually only provided in HQ stations.",)) -> 0
B133: =IF($G$34=0,,"Select "&'Fire Stations Data'!A33&" (yes or no):") -> 0 | F133: =G133*$J$27 -> 0 | G133: =IF($G$34=0,,IF(C133="Yes",'Fire Stations Data'!C33,)) -> 0
B134: =IF($G$34=0,,IF($C$11="Satellite","* Note: This is usually only provided in HQ stations.",)) -> 0
B135: =IF($G$34=0,,"Enter "&'Fire Stations Data'!A34&" (no. of workstations):") -> 0 | F135: =G135*$J$27 -> 0 | G135: =IF($G$34=0,,IF(C135=0,,('Fire Stations Data'!C34*C135))) -> 0 | O135: Limited to 10 inspector workstations.
B136: =IF($G$34=0,,IF($C$11="Satellite","* Note: This is usually only provided in HQ stations. If required at this Satellite station, enter the no. of workstations desired.","* If required, enter the no. of workstations desired at this station.")) -> 0
B137: =IF($G$34=0,,"Select "&'Fire Stations Data'!A35&" (yes or no):") -> 0 | F137: =G137*$J$27 -> 0 | G137: =IF($G$34=0,,IF(C137="Yes",'Fire Stations Data'!C35,)) -> 0
B139: =IF($G$34=0,,"Select "&'Fire Stations Data'!A36&" (yes or no):") -> 0 | F139: =G139*$J$27 -> 0 | G139: =IF($G$34=0,,IF(C139="Yes",'Fire Stations Data'!C36,)) -> 0
B140: =IF($G$34=0,,IF($C$11="Satellite","* Note: This is usually only provided in HQ stations.",)) -> 0
B141: =IF($G$34=0,,"Select "&'Fire Stations Data'!A37&" (yes or no):") -> 0 | F141: =G141*$J$27 -> 0 | G141: =IF($G$34=0,,IF(C141="Yes",'Fire Stations Data'!C37,)) -> 0
B142: =IF($G$34=0,,IF($C$11="Satellite","* Note: This is usually only provided in HQ stations.",)) -> 0
B143: =IF($G$34=0,,"Select "&'Fire Stations Data'!A40&" (yes or no):") -> 0 | F143: =G143*$J$27 -> 0 | G143: =IF($G$34=0,,IF(C143="Yes",'Fire Stations Data'!C40,)) -> 0
B144: =IF($G$34=0,,IF($C$11="Satellite","* Note: This is usually only provided in HQ stations or in conjunction with a "&'Fire Stations Data'!A38&" (see below).",)) -> 0
B145: =IF($G$34=0,,"Enter "&'Fire Stations Data'!A38&" (no. of people):") -> 0 | F145: =G145*$J$27 -> 0 | G145: =IF($G$34=0,,IF(C145=0,,('Fire Stations Data'!C38*C145))) -> 0 | O145: Limited to 100 people.
B146: =IF($G$34=0,,IF($C$11="Satellite","* Note: This is usually only provided in HQ stations. If required at this Satellite station, enter the no. of people to be accommodated/trained (typically this no. is the total on-duty Department staff).","* If required, enter the no. of people to be accommodated/trained (typically this no. is the total on-duty Department staff).")) -> 0
B147: =IF($G$34=0,,""&'Fire Stations Data'!A38&" includes "&'Fire Stations Data'!A39&" at:") -> 0 | F147: =G147*$J$27 -> 0 | G147: =IF(G145=0,,'Fire Stations Data'!C39) -> 0
B149: =IF($G$34=0,,IF(C11=J15,""&'Fire Stations Data'!A41&" ("&'Fire Stations Data'!D41&")",""&'Fire Stations Data'!A42&" ("&'Fire Stations Data'!D42&")")) -> 0 | F149: =G149*$J$27 -> 0 | G149: =IF($G$34=0,,IF(M150=TRUE,0,J149)) -> 0 | J149: =IF($G$34=0,,IF(C11=J15,'Fire Stations Data'!C41,'Fire Stations Data'!C42)) -> 0 | O149: 4 testing stations for satellite. 6 stations for HQ stations.
G150: =IF($G$34=0,,IF(C11=J15,"Check here to delete "&'Fire Stations Data'!A41&" in this station. >","Check here to delete "&'Fire Stations Data'!A42&" in this station. >")) -> 0 | M150: FALSE
B152: =IF($G$34=0,,""&'Fire Stations Data'!A43&"") -> 0 | F152: =G152*$J$27 -> 0 | G152: =IF($G$34=0,,IF(M153=TRUE,0,'Fire Stations Data'!C43)) -> 0
G153: =IF($G$34=0,,"Check here to delete "&'Fire Stations Data'!A43&" in this station. >") -> 0 | M153: FALSE
B155: =IF($G$34=0,,""&'Fire Stations Data'!A44&"") -> 0 | F155: =G155*$J$27 -> 0 | G155: =IF($G$34=0,,'Fire Stations Data'!C44) -> 0
B157: =IF($G$34=0,,"Select "&'Fire Stations Data'!A67&" (yes or no):") -> 0 | F157: =G157*$J$27 -> 0 | G157: =IF($G$34=0,,IF(C157="Yes",'Fire Stations Data'!C67,)) -> 0
B158: =IF($G$34=0,,"* Note: This is usually only provided in HQ stations that are consolidated with Police/ Security and Emergency Medical Services (EMS).") -> 0
B159: =IF($G$34=0,,IF($C$5="Air Force","Enter "&'Fire Stations Data'!A64&" (no. of offices):","Air Force-only.")) -> 0 | F159: =G159*$J$27 -> 0 | G159: =IF($G$34=0,,IF($C$5="Air Force",(C159*'Fire Stations Data'!C64),)) -> 0 | O159: Limited to 10 offices
B161: =IF($G$34=0,,IF($C$5="Air Force","Select Reserve & Active Duty Mob./Depl. Gear Storage:","Air Force-only.")) -> 0 | F161: =G161*$J$27 -> 0 | G161: =IF($G$34=0,,IF($C$5="Air Force",IF(C161="Yes",'Fire Stations Data'!C65,),)) -> 0
B163: =IF($G$34=0,,IF($C$5="Air Force","Select "&'Fire Stations Data'!A66&" (no. of reservists):","Air Force-only.")) -> 0 | F163: =G163*$J$27 -> 0 | G163: =IF($G$34=0,,IF($C$5="Air Force",IF(C163=J163,('Fire Stations Data'!C66*M163),IF(C163=J164,('Fire Stations Data'!C66*M164),IF(C163=J165,('Fire Stations Data'!C66*M165),0))))) -> 0 | J163: =""&M163&" Reservists" -> 12 Reservists | M163: 12
J164: =""&M164&" Reservists" -> 24 Reservists | M164: 24
J165: =""&M165&" Reservists" -> 36 Reservists | M165: 36
A167: ="Dispatch" -> Dispatch
F168: m2 | G168: ft.2
B169: =IF($G$34=0,,"Enter no. of "&'Fire Stations Data'!A45&" stations (on-duty "&'Fire Stations Data'!A45&"ers):") -> 0 | F169: =G169*$J$27 -> 0 | G169: =IF($G$34=0,,IF(C169=0,,('Fire Stations Data'!C45*C169))) -> 0 | O169: Limited to 5 Dispatchers. - No. of dispatchers on duty
B171: =IF($G$34=0,,""&'Fire Stations Data'!$A$45&" includes "&'Fire Stations Data'!A47&" at:") -> 0 | F171: =G171*$J$27 -> 0 | G171: =IF(G169=0,,'Fire Stations Data'!C47) -> 0
B172: =IF($G$34=0,,""&'Fire Stations Data'!$A$45&" includes "&'Fire Stations Data'!A48&" at:") -> 0 | F172: =G172*$J$27 -> 0 | G172: =IF(G169=0,,'Fire Stations Data'!C48) -> 0
B173: =IF($G$34=0,,""&'Fire Stations Data'!$A$45&" includes "&'Fire Stations Data'!A49&" space at:") -> 0 | F173: =G173*$J$27 -> 0 | G173: =IF(G169=0,,'Fire Stations Data'!C49) -> 0
B175: =IF($G$34=0,,IF(G169=0,"Only available with "&'Fire Stations Data'!A45&".","Select "&'Fire Stations Data'!A46&" (yes or no):")) -> 0 | F175: =G175*$J$27 -> 0 | G175: =IF(G169=0,,IF(C175="Yes",'Fire Stations Data'!C46,)) -> 0
B176: =IF($G$34=0,,IF(G169=0,,"* This provides space for a "&'Fire Stations Data'!A46&"'s workstation.")) -> 0
A179: Building Totals
D181: Subtotal - Total Net Building Area | F181: =G181*$J$27 -> 0 | G181: =SUM(G38:G180) -> 0
B183: ="Net-to-Gross factor (modify as necessary):" -> Net-to-Gross factor (modify as necessary): | D183: =IF(C183=0,"(factor at "&J187&")","(factor at "&C183&")") -> (factor at 0.22) | F183: =G183*$J$27 -> 0 | G183: =IF(C183=0,G181*J187,G181*C183) -> 0 | J183: 0.18
B184: * The net-to-gross factor accounts for circulation space, mechanical space, and wall thicknesses. The net-to-gross multiplier for Fire Stations may vary from 18% to 22% depending on the size of the Apparatus Room relative to the rest of the facility. Typically, the larger the Apparatus Bay, the lower the multiplier and vice versa. However, carefully consider the entire building configuration before changing the factor from the default setting of 22%. | J184: 0.19
J185: 0.2
J186: 0.21
J187: 0.22
B189: =IF(G34=0,,"Summary for "&C5&" Fire Station:") -> 0 | D189: TOTAL GROSS BUILDING | F189: =F183+F181 -> 0 | G189: =G183+G181 -> 0
B190: =IF(G34=0,,"Type of Facility = "&C8) -> 0
B191: =IF(G34=0,,"Class of Facility = "&C11) -> 0
B192: =IF(G34=0,,"Total Dorm Room Count = "&G25) -> 0
B193: =IF(G34=0,,"Total No. of Apparatus Bays = "&J193&" ") -> 0 | J193: =IF(G40=0,SUM(C28:C31),SUM(C28:C31)+J40) -> 0
A196: Site
F197: m2 | G197: ft.2
B198: =IF($G$34=0,,"Based on selections entered above, "&'Fire Stations Data'!A72&" is sized:") -> 0 | F198: =G198*$J$27 -> 0 | G198: =IF(G34=0,,(G25*'Fire Stations Data'!C72*2)) -> 0 | O198: Using AF Guidance which states 200% of positions/shift
B200: =IF($G$34=0,,"Based on selections entered above, "&'Fire Stations Data'!A73&" is sized:") -> 0 | F200: =G200*$J$27 -> 0 | G200: =IF(G34=0,,IF(OR(C11=J14,C11=J16),5*'Fire Stations Data'!C73,2*'Fire Stations Data'!C73)) -> 0 | O200: Using AF Guidance which states 5 spaces for HQ, 2 spaces for satellite
B202: =IF($G$34=0,,"Based on selections entered above, "&'Fire Stations Data'!A74&" is sized:") -> 0 | F202: =G202*$J$27 -> 0 | G202: =IF(G34=0,,'Fire Stations Data'!C74) -> 0
B204: =IF($G$34=0,,"Based on selections entered above, "&'Fire Stations Data'!A75&" is sized:") -> 0 | F204: =G204*$J$27 -> 0 | G204: =IF(G34=0,,('Fire Stations Data'!C75*J193)) -> 0
B206: =IF($G$34=0,,"Based on selections entered above, "&'Fire Stations Data'!A76&" is sized:") -> 0 | F206: =G206*$J$27 -> 0 | G206: =IF($G$34=0,,('Fire Stations Data'!C76*(C30+C31))) -> 0
B208: =IF($G$34=0,,"Based on selections entered above, "&'Fire Stations Data'!A77&" is sized:") -> 0 | F208: =G208*$J$27 -> 0 | G208: =IF($G$34=0,,('Fire Stations Data'!C77)) -> 0
B210: =IF($G$34=0,,"Based on selections entered above, "&'Fire Stations Data'!A78&" is sized:") -> 0 | F210: =G210*$J$27 -> 0 | G210: =IF($G$34=0,,J210) -> 0 | J210: =IF($G$34=0,,IF(($C$16+$C$17)<3,('Fire Stations Data'!C78),IF(($C$16+$C$17)<5,('Fire Stations Data'!C78+100),IF(($C$16+$C$17)>4,(('Fire Stations Data'!C78+200)),"Error")))) -> 0 | O210: 1 to 2 companies = 150 sf; 3 to 4 cos = 250 sf; 5+ companies = 350 sf.
D212: TOTAL GROSS SITE SUPPORT | F212: =SUM(F198:F210) -> 0 | G212: =SUM(G198:G210) -> 0
D215: TOTAL GROSS FACILITY (BUILDING + SITE SUPPORT) | F215: =F212+F189 -> 0 | G215: =G212+G189 -> 0
